[Event "Titled Tuesday Blitz July 4 Early 2023"]
[White "MKlose11"]
[Black "Stribuk, Artiom"]
[BlackFideId "13515659"]
[WhiteElo "2607"]
[BlackElo "2819"]
[Result "1-0"]
[Round "5"]
[TimeControl "180+2"]
[Date "2023.07.04"]
[WhiteClock "0:00:17"]
[BlackClock "0:00:02"]
[Board "42"]

1. e4 {[%clk 0:02:55]}  c5 {[%clk 0:02:59]} 2. Nc3 {[%clk 0:02:48]}  Nc6 {[%clk 0:02:58]} 3. g3 {[%clk 0:02:48]}  g6 {[%clk 0:02:56]} 4. d3 {[%clk 0:02:37]}  Bg7 {[%clk 0:02:56]} 5. Bg2 {[%clk 0:02:37]}  d6 {[%clk 0:02:54]} 6. Be3 {[%clk 0:02:36]}  e5 {[%clk 0:02:54]} 7. Qd2 {[%clk 0:02:36]}  Nge7 {[%clk 0:02:54]} 8. Bh6 {[%clk 0:02:37]}  O-O {[%clk 0:02:54]} 9. h4 {[%clk 0:02:33]}  f6 {[%clk 0:02:54]} 10. Bxg7 {[%clk 0:02:32]}  Kxg7 {[%clk 0:02:55]} 11. f4 {[%clk 0:02:33]}  Bg4 {[%clk 0:02:48]} 12. Nf3 {[%clk 0:02:32]}  Qd7 {[%clk 0:02:47]} 13. O-O-O {[%clk 0:02:30]}  Nd4 {[%clk 0:02:44]} 14. Rdf1 {[%clk 0:02:30]}  h5 {[%clk 0:02:43]} 15. Kb1 {[%clk 0:02:24]}  b5 {[%clk 0:02:36]} 16. Nd1 {[%clk 0:02:24]}  b4 {[%clk 0:02:36]} 17. Ne3 {[%clk 0:02:24]}  Rh8 {[%clk 0:01:44]} 18. Nc4 {[%clk 0:02:12]}  Nec6 {[%clk 0:01:18]} 19. Rf2 {[%clk 0:02:01]}  Raf8 {[%clk 0:01:02]} 20. Rhf1 {[%clk 0:02:00]}  Be6 {[%clk 0:00:50]} 21. Ne3 {[%clk 0:01:59]}  a5 {[%clk 0:00:48]} 22. f5 {[%clk 0:01:41]}  Bg8 {[%clk 0:00:23]} 23. fxg6 {[%clk 0:01:38]}  Be6 {[%clk 0:00:22]} 24. Nf5+ {[%clk 0:01:31]}  Bxf5 {[%clk 0:00:17]} 25. exf5 {[%clk 0:01:32]}  Ne7 {[%clk 0:00:11]} 26. Bh3 {[%clk 0:01:23]}  a4 {[%clk 0:00:08]} 27. Ng5 {[%clk 0:01:10]}  b3 {[%clk 0:00:04]} 28. c3 {[%clk 0:01:07]}  bxa2+ {[%clk 0:00:05]} 29. Kxa2 {[%clk 0:01:07]}  Nb3 {[%clk 0:00:05]} 30. Qe2 {[%clk 0:01:03]}  Rb8 {[%clk 0:00:05]} 31. Ne6+ {[%clk 0:01:03]}  Kg8 {[%clk 0:00:06]} 32. g4 {[%clk 0:01:00]}  Qb7 {[%clk 0:00:05]} 33. Bg2 {[%clk 0:00:59]}  d5 {[%clk 0:00:05]} 34. c4 {[%clk 0:00:57]}  Nd4 {[%clk 0:00:05]} 35. Nxd4 {[%clk 0:00:52]}  cxd4 {[%clk 0:00:05]} 36. cxd5 {[%clk 0:00:48]}  Qb3+ {[%clk 0:00:06]} 37. Ka1 {[%clk 0:00:48]}  a3 {[%clk 0:00:06]} 38. bxa3 {[%clk 0:00:39]}  Ra8 {[%clk 0:00:06]} 39. Qb2 {[%clk 0:00:38]}  Qxd3 {[%clk 0:00:05]} 40. Rf3 {[%clk 0:00:37]}  Qa6 {[%clk 0:00:04]} 41. Rb3 {[%clk 0:00:35]}  hxg4 {[%clk 0:00:04]} 42. d6 {[%clk 0:00:35]}  Qxd6 {[%clk 0:00:02]} 43. Bxa8 {[%clk 0:00:35]}  Kg7 {[%clk 0:00:02]} 44. Be4 {[%clk 0:00:33]}  Rxh4 {[%clk 0:00:02]} 45. Rb6 {[%clk 0:00:33]}  Qd8 {[%clk 0:00:03]} 46. Rb8 {[%clk 0:00:33]}  Qc7 {[%clk 0:00:03]} 47. Qb3 {[%clk 0:00:33]}  g3 {[%clk 0:00:01]} 48. Rb7 {[%clk 0:00:28]}  Qd8 {[%clk 0:00:01]} 49. Qf7+ {[%clk 0:00:27]}  Kh6 {[%clk 0:00:02]} 50. Qxe7 {[%clk 0:00:25]}  Qc8 {[%clk 0:00:02]} 51. Qb4 {[%clk 0:00:20]}  Kg5 {[%clk 0:00:02]} 52. Qd2+ {[%clk 0:00:20]}  Rf4 {[%clk 0:00:02]} 53. Rxf4 {[%clk 0:00:19]}  exf4 {[%clk 0:00:03]} 54. g7 {[%clk 0:00:19]}  Qc4 {[%clk 0:00:02]} 55. Rb8 {[%clk 0:00:18]}  Kh4 {[%clk 0:00:01]} 56. g8=Q {[%clk 0:00:17]}  Qf1+ {[%clk 0:00:02]} 1-0


[Site "https://www.chess.com"]

[Event "Titled Tuesday Blitz July 4 Early 2023"]
[White "Pinheiro, Iung Alicio de O."]
[Black "Perez Ponsa, Federico"]
[WhiteFideId "2104350"]
[BlackFideId "117927"]
[WhiteElo "2599"]
[BlackElo "2798"]
[Result "0-1"]
[Round "5"]
[TimeControl "180+2"]
[Date "2023.07.04"]
[WhiteClock "0:00:00"]
[BlackClock "0:00:08"]
[Board "43"]

1. e4 {[%clk 0:03:00]}  c6 {[%clk 0:02:28]} 2. Nc3 {[%clk 0:02:58]}  d5 {[%clk 0:02:25]} 3. Nf3 {[%clk 0:02:58]}  dxe4 {[%clk 0:02:21]} 4. Nxe4 {[%clk 0:02:59]}  Nf6 {[%clk 0:02:22]} 5. Qe2 {[%clk 0:02:59]}  Nxe4 {[%clk 0:02:22]} 6. Qxe4 {[%clk 0:03:00]}  Qa5 {[%clk 0:02:22]} 7. Bc4 {[%clk 0:02:31]}  Bf5 {[%clk 0:02:08]} 8. Qf4 {[%clk 0:02:30]}  e6 {[%clk 0:02:05]} 9. O-O {[%clk 0:02:26]}  Nd7 {[%clk 0:02:04]} 10. c3 {[%clk 0:02:04]}  Nb6 {[%clk 0:01:52]} 11. Be2 {[%clk 0:01:57]}  Nd5 {[%clk 0:01:52]} 12. Qg3 {[%clk 0:01:53]}  Be7 {[%clk 0:01:44]} 13. d4 {[%clk 0:01:53]}  O-O {[%clk 0:01:38]} 14. Bh6 {[%clk 0:01:44]}  Bg6 {[%clk 0:01:37]} 15. Bd2 {[%clk 0:01:44]}  Qc7 {[%clk 0:01:37]} 16. Qxc7 {[%clk 0:00:48]}  Nxc7 {[%clk 0:01:38]} 17. Ne5 {[%clk 0:00:48]}  Rfd8 {[%clk 0:01:00]} 18. Be3 {[%clk 0:00:40]}  Nd5 {[%clk 0:00:59]} 19. Bc1 {[%clk 0:00:38]}  Bd6 {[%clk 0:00:58]} 20. Nc4 {[%clk 0:00:37]}  Bc7 {[%clk 0:00:58]} 21. a4 {[%clk 0:00:37]}  Rd7 {[%clk 0:00:56]} 22. g3 {[%clk 0:00:36]}  Rad8 {[%clk 0:00:55]} 23. Ne3 {[%clk 0:00:30]}  h6 {[%clk 0:00:50]} 24. a5 {[%clk 0:00:29]}  Be4 {[%clk 0:00:48]} 25. Nc4 {[%clk 0:00:28]}  b5 {[%clk 0:00:42]} 26. axb6 {[%clk 0:00:27]}  axb6 {[%clk 0:00:42]} 27. Re1 {[%clk 0:00:28]}  b5 {[%clk 0:00:43]} 28. Ne3 {[%clk 0:00:28]}  Nxe3 {[%clk 0:00:40]} 29. Bxe3 {[%clk 0:00:28]}  Bd5 {[%clk 0:00:40]} 30. Bf1 {[%clk 0:00:28]}  Bd6 {[%clk 0:00:36]} 31. Ra6 {[%clk 0:00:27]}  Rb8 {[%clk 0:00:35]} 32. Rea1 {[%clk 0:00:27]}  g5 {[%clk 0:00:34]} 33. Ra8 {[%clk 0:00:22]}  Rdd8 {[%clk 0:00:32]} 34. R8a6 {[%clk 0:00:21]}  Kg7 {[%clk 0:00:32]} 35. Bg2 {[%clk 0:00:20]}  Be7 {[%clk 0:00:31]} 36. Bxd5 {[%clk 0:00:20]}  cxd5 {[%clk 0:00:32]} 37. Ra7 {[%clk 0:00:19]}  Bf8 {[%clk 0:00:31]} 38. b4 {[%clk 0:00:18]}  Rdc8 {[%clk 0:00:30]} 39. Bd2 {[%clk 0:00:18]}  Kg6 {[%clk 0:00:31]} 40. g4 {[%clk 0:00:18]}  Bd6 {[%clk 0:00:29]} 41. h3 {[%clk 0:00:17]}  Bf4 {[%clk 0:00:24]} 42. Be1 {[%clk 0:00:16]}  f6 {[%clk 0:00:23]} 43. Kg2 {[%clk 0:00:16]}  h5 {[%clk 0:00:22]} 44. Kf3 {[%clk 0:00:16]}  hxg4+ {[%clk 0:00:22]} 45. hxg4 {[%clk 0:00:17]}  Rh8 {[%clk 0:00:23]} 46. R1a6 {[%clk 0:00:16]}  Rh3+ {[%clk 0:00:22]} 47. Ke2 {[%clk 0:00:16]}  Re8 {[%clk 0:00:22]} 48. Rb7 {[%clk 0:00:16]}  e5 {[%clk 0:00:20]} 49. Rbb6 {[%clk 0:00:08]}  exd4+ {[%clk 0:00:20]} 50. Kd1 {[%clk 0:00:08]}  Rh1 {[%clk 0:00:08]} 51. Rxf6+ {[%clk 0:00:07]}  Kh7 {[%clk 0:00:08]} 52. Rae6 {[%clk 0:00:06]}  Rxe6 {[%clk 0:00:07]} 53. Rxe6 {[%clk 0:00:00]}  d3 {[%clk 0:00:08]} 0-1


[Site "https://www.chess.com"]

[Event "Titled Tuesday Blitz July 4 Early 2023"]
[White "Zavgorodniy, Sergiy"]
[Black "Mendonca, Leon Luke"]
[WhiteFideId "14110148"]
[BlackFideId "35028561"]
[WhiteElo "2563"]
[BlackElo "2789"]
[Result "0-1"]
[Round "5"]
[TimeControl "180+2"]
[Date "2023.07.04"]
[WhiteClock "0:00:02"]
[BlackClock "0:00:25"]
[Board "46"]

1. e4 {[%clk 0:03:00]}  Nf6 {[%clk 0:02:52]} 2. d3 {[%clk 0:02:59]}  d5 {[%clk 0:02:50]} 3. e5 {[%clk 0:02:58]}  Nfd7 {[%clk 0:02:51]} 4. f4 {[%clk 0:02:59]}  c5 {[%clk 0:02:52]} 5. g3 {[%clk 0:02:57]}  Nc6 {[%clk 0:02:52]} 6. Bg2 {[%clk 0:02:57]}  e6 {[%clk 0:02:50]} 7. Nf3 {[%clk 0:02:57]}  Be7 {[%clk 0:02:50]} 8. O-O {[%clk 0:02:57]}  O-O {[%clk 0:02:51]} 9. c3 {[%clk 0:02:50]}  b5 {[%clk 0:02:51]} 10. Kh1 {[%clk 0:02:46]}  a5 {[%clk 0:02:51]} 11. d4 {[%clk 0:02:42]}  b4 {[%clk 0:02:50]} 12. Be3 {[%clk 0:02:40]}  Ba6 {[%clk 0:02:50]} 13. Re1 {[%clk 0:02:28]}  Rb8 {[%clk 0:02:37]} 14. Nbd2 {[%clk 0:02:26]}  bxc3 {[%clk 0:02:34]} 15. bxc3 {[%clk 0:02:27]}  cxd4 {[%clk 0:02:34]} 16. Nxd4 {[%clk 0:02:25]}  Nxd4 {[%clk 0:02:32]} 17. Bxd4 {[%clk 0:02:26]}  Nc5 {[%clk 0:02:27]} 18. Rb1 {[%clk 0:01:59]}  Qd7 {[%clk 0:02:24]} 19. g4 {[%clk 0:01:36]}  a4 {[%clk 0:02:19]} 20. Qf3 {[%clk 0:01:32]}  Rxb1 {[%clk 0:01:48]} 21. Rxb1 {[%clk 0:01:31]}  Bd3 {[%clk 0:01:45]} 22. Re1 {[%clk 0:01:11]}  Bc2 {[%clk 0:01:37]} 23. Qe3 {[%clk 0:01:08]}  Rc8 {[%clk 0:01:33]} 24. Rc1 {[%clk 0:01:03]}  Bg6 {[%clk 0:01:31]} 25. Rf1 {[%clk 0:00:58]}  a3 {[%clk 0:01:23]} 26. Nf3 {[%clk 0:00:46]}  Bd3 {[%clk 0:01:10]} 27. Rd1 {[%clk 0:00:44]}  Bc2 {[%clk 0:01:05]} 28. Rc1 {[%clk 0:00:43]}  Be4 {[%clk 0:01:05]} 29. Nd2 {[%clk 0:00:41]}  Bxg2+ {[%clk 0:01:05]} 30. Kxg2 {[%clk 0:00:41]}  Na4 {[%clk 0:01:05]} 31. Rf1 {[%clk 0:00:36]}  h6 {[%clk 0:00:52]} 32. h4 {[%clk 0:00:27]}  Bc5 {[%clk 0:00:39]} 33. f5 {[%clk 0:00:19]}  Bxd4 {[%clk 0:00:39]} 34. cxd4 {[%clk 0:00:19]}  Rc2 {[%clk 0:00:35]} 35. Rf2 {[%clk 0:00:17]}  Nb2 {[%clk 0:00:33]} 36. Qf3 {[%clk 0:00:11]}  Nc4 {[%clk 0:00:28]} 37. f6 {[%clk 0:00:02]}  Rxd2 {[%clk 0:00:25]} 0-1


[Site "https://www.chess.com"]

[Event "Titled Tuesday Blitz July 4 Early 2023"]
[White "Rodchenkov, Sergey D."]
[Black "Rustemov, Alexander"]
[WhiteFideId "4168712"]
[BlackFideId "4119002"]
[WhiteElo "2547"]
[BlackElo "2786"]
[Result "1-0"]
[Round "5"]
[TimeControl "180+2"]
[Date "2023.07.04"]
[WhiteClock "0:00:06"]
[BlackClock "0:00:00"]
[Board "47"]

1. e4 {[%clk 0:03:00]}  e6 {[%clk 0:02:59]} 2. d4 {[%clk 0:03:00]}  d5 {[%clk 0:02:59]} 3. Nc3 {[%clk 0:03:01]}  dxe4 {[%clk 0:02:59]} 4. Nxe4 {[%clk 0:03:02]}  Bd7 {[%clk 0:03:00]} 5. Nf3 {[%clk 0:03:02]}  Bc6 {[%clk 0:03:00]} 6. Bd3 {[%clk 0:03:02]}  Nd7 {[%clk 0:03:00]} 7. O-O {[%clk 0:03:00]}  Ngf6 {[%clk 0:03:01]} 8. Ng3 {[%clk 0:03:01]}  Be7 {[%clk 0:03:00]} 9. Qe2 {[%clk 0:03:01]}  Bxf3 {[%clk 0:02:58]} 10. Qxf3 {[%clk 0:03:02]}  c6 {[%clk 0:02:58]} 11. c3 {[%clk 0:02:57]}  O-O {[%clk 0:02:58]} 12. Rd1 {[%clk 0:02:47]}  Re8 {[%clk 0:02:56]} 13. h4 {[%clk 0:02:43]}  Nd5 {[%clk 0:02:43]} 14. h5 {[%clk 0:02:20]}  Bg5 {[%clk 0:02:42]} 15. c4 {[%clk 0:01:54]}  Bxc1 {[%clk 0:02:24]} 16. cxd5 {[%clk 0:01:49]}  Bxb2 {[%clk 0:02:15]} 17. Rab1 {[%clk 0:01:34]}  Bxd4 {[%clk 0:02:08]} 18. dxc6 {[%clk 0:01:28]}  bxc6 {[%clk 0:01:59]} 19. Bxh7+ {[%clk 0:01:21]}  Kxh7 {[%clk 0:01:57]} 20. Rxd4 {[%clk 0:01:21]}  Re7 {[%clk 0:01:08]} 21. Rb7 {[%clk 0:01:11]}  f5 {[%clk 0:00:16]} 22. Qd1 {[%clk 0:00:55]}  Rc8 {[%clk 0:00:08]} 23. Rdxd7 {[%clk 0:00:52]}  Rxd7 {[%clk 0:00:09]} 24. Rxd7 {[%clk 0:00:53]}  Qf6 {[%clk 0:00:09]} 25. Rxa7 {[%clk 0:00:35]}  c5 {[%clk 0:00:09]} 26. Rd7 {[%clk 0:00:28]}  c4 {[%clk 0:00:10]} 27. Qc2 {[%clk 0:00:25]}  c3 {[%clk 0:00:09]} 28. Rd3 {[%clk 0:00:24]}  Qe5 {[%clk 0:00:08]} 29. Ne2 {[%clk 0:00:21]}  Rb8 {[%clk 0:00:08]} 30. Rxc3 {[%clk 0:00:18]}  Rb4 {[%clk 0:00:04]} 31. a3 {[%clk 0:00:17]}  Re4 {[%clk 0:00:04]} 32. Ng3 {[%clk 0:00:14]}  Re1+ {[%clk 0:00:04]} 33. Kh2 {[%clk 0:00:14]}  Kh6 {[%clk 0:00:03]} 34. Rc4 {[%clk 0:00:10]}  Qa1 {[%clk 0:00:01]} 35. Qd2+ {[%clk 0:00:10]}  Kh7 {[%clk 0:00:02]} 36. Qg5 {[%clk 0:00:07]}  Qf6 {[%clk 0:00:01]} 37. Qxf6 {[%clk 0:00:07]}  gxf6 {[%clk 0:00:02]} 38. Rc7+ {[%clk 0:00:07]}  Kh6 {[%clk 0:00:02]} 39. Rf7 {[%clk 0:00:07]}  Kg5 {[%clk 0:00:02]} 40. h6 {[%clk 0:00:07]}  Kxh6 {[%clk 0:00:02]} 41. Rxf6+ {[%clk 0:00:08]}  Kg5 {[%clk 0:00:02]} 42. Rf8 {[%clk 0:00:08]}  f4 {[%clk 0:00:02]} 43. Nh1 {[%clk 0:00:08]}  e5 {[%clk 0:00:02]} 44. f3 {[%clk 0:00:08]}  Ra1 {[%clk 0:00:02]} 45. Nf2 {[%clk 0:00:08]}  Rxa3 {[%clk 0:00:02]} 46. Ne4+ {[%clk 0:00:09]}  Kg6 {[%clk 0:00:02]} 47. Re8 {[%clk 0:00:09]}  Ra5 {[%clk 0:00:02]} 48. Re6+ {[%clk 0:00:08]}  Kg7 {[%clk 0:00:01]} 49. Rc6 {[%clk 0:00:08]}  Kf7 {[%clk 0:00:01]} 50. Rc5 {[%clk 0:00:08]}  Ra4 {[%clk 0:00:01]} 51. Rxe5 {[%clk 0:00:09]}  Kg6 {[%clk 0:00:01]} 52. Re6+ {[%clk 0:00:09]}  Kf5 {[%clk 0:00:01]} 53. Rf6+ {[%clk 0:00:09]}  Ke5 {[%clk 0:00:02]} 54. Rg6 {[%clk 0:00:10]}  Ra2 {[%clk 0:00:03]} 55. Rg5+ {[%clk 0:00:10]}  Ke6 {[%clk 0:00:03]} 56. Rg4 {[%clk 0:00:11]}  Ke5 {[%clk 0:00:04]} 57. Rg5+ {[%clk 0:00:06]}  Ke6 {[%clk 0:00:04]} 58. Rh5 {[%clk 0:00:06]}  Rb2 {[%clk 0:00:03]} 59. Rh4 {[%clk 0:00:07]}  Ke5 {[%clk 0:00:03]} 60. Ng5 {[%clk 0:00:07]}  Kf5 {[%clk 0:00:03]} 61. Nh3 {[%clk 0:00:08]}  Ra2 {[%clk 0:00:03]} 62. Rxf4+ {[%clk 0:00:08]}  Ke5 {[%clk 0:00:04]} 63. Rg4 {[%clk 0:00:09]}  Kf5 {[%clk 0:00:04]} 64. Rg5+ {[%clk 0:00:09]}  Kf6 {[%clk 0:00:05]} 65. Kg3 {[%clk 0:00:09]}  Ke6 {[%clk 0:00:05]} 66. f4 {[%clk 0:00:10]}  Kf6 {[%clk 0:00:06]} 67. Kg4 {[%clk 0:00:10]}  Rxg2+ {[%clk 0:00:05]} 68. Kf3 {[%clk 0:00:10]}  Ra2 {[%clk 0:00:05]} 69. Nf2 {[%clk 0:00:10]}  Ra3+ {[%clk 0:00:06]} 70. Kg4 {[%clk 0:00:11]}  Ra4 {[%clk 0:00:06]} 71. Rb5 {[%clk 0:00:10]}  Rc4 {[%clk 0:00:06]} 72. Rb6+ {[%clk 0:00:10]}  Kf7 {[%clk 0:00:06]} 73. Kg5 {[%clk 0:00:10]}  Ra4 {[%clk 0:00:05]} 74. Ng4 {[%clk 0:00:10]}  Ra1 {[%clk 0:00:05]} 75. f5 {[%clk 0:00:10]}  Ra5 {[%clk 0:00:04]} 76. Rb7+ {[%clk 0:00:10]}  Kf8 {[%clk 0:00:04]} 77. Kg6 {[%clk 0:00:11]}  Ra6+ {[%clk 0:00:03]} 78. Nf6 {[%clk 0:00:10]}  Ra7 {[%clk 0:00:02]} 79. Rb8+ {[%clk 0:00:09]}  Ke7 {[%clk 0:00:02]} 80. Ng4 {[%clk 0:00:08]}  Kd6 {[%clk 0:00:02]} 81. f6 {[%clk 0:00:07]}  Ke6 {[%clk 0:00:02]} 82. Re8+ {[%clk 0:00:07]}  Kd6 {[%clk 0:00:03]} 83. Re2 {[%clk 0:00:07]}  Ra4 {[%clk 0:00:02]} 84. Rg2 {[%clk 0:00:06]}  Ke6 {[%clk 0:00:02]} 85. f7 {[%clk 0:00:06]}  Ke7 {[%clk 0:00:00]} 86. Re2+ {[%clk 0:00:06]} 1-0


[Site "https://www.chess.com"]

[Event "Titled Tuesday Blitz July 4 Early 2023"]
[White "Namitbir Singh Walia"]
[Black "Harsh Suresh"]
[WhiteFideId "35071068"]
[BlackFideId "45018464"]
[WhiteElo "2543"]
[BlackElo "2782"]
[Result "0-1"]
[Round "5"]
[TimeControl "180+2"]
[Date "2023.07.04"]
[WhiteClock "0:00:05"]
[BlackClock "0:01:11"]
[Board "48"]

1. e4 {[%clk 0:02:52]}  g6 {[%clk 0:02:40]} 2. d4 {[%clk 0:02:51]}  Nf6 {[%clk 0:02:40]} 3. e5 {[%clk 0:02:50]}  Nh5 {[%clk 0:02:40]} 4. Be2 {[%clk 0:02:47]}  d6 {[%clk 0:02:40]} 5. Bxh5 {[%clk 0:02:44]}  gxh5 {[%clk 0:02:41]} 6. Qxh5 {[%clk 0:02:44]}  dxe5 {[%clk 0:02:41]} 7. Qxe5 {[%clk 0:02:45]}  Rg8 {[%clk 0:02:41]} 8. Nf3 {[%clk 0:02:36]}  Rxg2 {[%clk 0:02:27]} 9. Bf4 {[%clk 0:02:27]}  Rg6 {[%clk 0:02:09]} 10. Qxc7 {[%clk 0:02:19]}  Re6+ {[%clk 0:01:55]} 11. Kd1 {[%clk 0:01:29]}  Qxc7 {[%clk 0:01:51]} 12. Bxc7 {[%clk 0:01:30]}  Rf6 {[%clk 0:01:51]} 13. Nbd2 {[%clk 0:00:48]}  Bg4 {[%clk 0:01:50]} 14. Ke2 {[%clk 0:00:49]}  Nc6 {[%clk 0:01:45]} 15. c3 {[%clk 0:00:48]}  Bh6 {[%clk 0:01:44]} 16. Rag1 {[%clk 0:00:44]}  Bh5 {[%clk 0:01:31]} 17. Rg8+ {[%clk 0:00:42]}  Kd7 {[%clk 0:01:31]} 18. Rxa8 {[%clk 0:00:32]}  Kxc7 {[%clk 0:01:31]} 19. Rg1 {[%clk 0:00:16]}  Bxd2 {[%clk 0:01:29]} 20. Kxd2 {[%clk 0:00:15]}  Rxf3 {[%clk 0:01:29]} 21. Ke1 {[%clk 0:00:15]}  Bg6 {[%clk 0:01:28]} 22. Rg3 {[%clk 0:00:14]}  Rf5 {[%clk 0:01:28]} 23. Re3 {[%clk 0:00:14]}  e6 {[%clk 0:01:27]} 24. b4 {[%clk 0:00:13]}  Rh5 {[%clk 0:01:26]} 25. h3 {[%clk 0:00:13]}  a6 {[%clk 0:01:25]} 26. a4 {[%clk 0:00:13]}  Ne7 {[%clk 0:01:25]} 27. Rf3 {[%clk 0:00:10]}  Nf5 {[%clk 0:01:11]} 28. Kd2 {[%clk 0:00:10]}  Nd6 {[%clk 0:01:11]} 29. Rf8 {[%clk 0:00:06]}  Rh4 {[%clk 0:01:10]} 30. Rg3 {[%clk 0:00:06]}  Ne4+ {[%clk 0:01:10]} 31. Ke3 {[%clk 0:00:07]}  Nxg3 {[%clk 0:01:10]} 32. fxg3 {[%clk 0:00:05]}  Rxh3 {[%clk 0:01:11]} 0-1


[Site "https://www.chess.com"]

[Event "Titled Tuesday Blitz July 4 Early 2023"]
[White "Papayan, Oleg"]
[Black "Cabarkapa, Novak"]
[WhiteFideId "4193911"]
[BlackFideId "943746"]
[WhiteElo "2540"]
[BlackElo "2779"]
[Result "0-1"]
[Round "5"]
[TimeControl "180+2"]
[Date "2023.07.04"]
[WhiteClock "0:00:10"]
[BlackClock "0:00:44"]
[Board "49"]

1. e4 {[%clk 0:03:00]}  e6 {[%clk 0:02:51]} 2. d4 {[%clk 0:03:00]}  d5 {[%clk 0:02:51]} 3. Nc3 {[%clk 0:03:01]}  Nf6 {[%clk 0:02:51]} 4. Bg5 {[%clk 0:03:00]}  dxe4 {[%clk 0:02:51]} 5. Nxe4 {[%clk 0:02:59]}  Be7 {[%clk 0:02:51]} 6. Nxf6+ {[%clk 0:02:56]}  Bxf6 {[%clk 0:02:51]} 7. Bxf6 {[%clk 0:02:56]}  Qxf6 {[%clk 0:02:52]} 8. Nf3 {[%clk 0:02:56]}  O-O {[%clk 0:02:52]} 9. Bd3 {[%clk 0:02:55]}  Nd7 {[%clk 0:02:51]} 10. Qe2 {[%clk 0:02:53]}  c5 {[%clk 0:02:46]} 11. Qe4 {[%clk 0:02:46]}  g6 {[%clk 0:02:43]} 12. O-O-O {[%clk 0:02:30]}  cxd4 {[%clk 0:02:43]} 13. Qxd4 {[%clk 0:02:30]}  Qxd4 {[%clk 0:02:32]} 14. Nxd4 {[%clk 0:02:31]}  Nc5 {[%clk 0:02:32]} 15. Nb5 {[%clk 0:02:16]}  e5 {[%clk 0:02:22]} 16. Nc7 {[%clk 0:02:08]}  Rb8 {[%clk 0:02:16]} 17. Rhe1 {[%clk 0:02:02]}  Nxd3+ {[%clk 0:02:06]} 18. Rxd3 {[%clk 0:01:58]}  f6 {[%clk 0:02:05]} 19. Rd6 {[%clk 0:01:43]}  Kf7 {[%clk 0:01:55]} 20. Red1 {[%clk 0:01:26]}  Bf5 {[%clk 0:01:49]} 21. Nd5 {[%clk 0:01:24]}  Be6 {[%clk 0:01:42]} 22. Nc7 {[%clk 0:01:04]}  Bf5 {[%clk 0:01:37]} 23. Nd5 {[%clk 0:01:04]}  Rbc8 {[%clk 0:01:28]} 24. c3 {[%clk 0:00:38]}  Be6 {[%clk 0:01:26]} 25. Kc2 {[%clk 0:00:28]}  Rfd8 {[%clk 0:01:20]} 26. Rxd8 {[%clk 0:00:28]}  Rxd8 {[%clk 0:01:20]} 27. Ne3 {[%clk 0:00:22]}  Rc8 {[%clk 0:01:20]} 28. b3 {[%clk 0:00:20]}  b5 {[%clk 0:01:17]} 29. Kb2 {[%clk 0:00:19]}  f5 {[%clk 0:01:17]} 30. Rd6 {[%clk 0:00:19]}  Ke7 {[%clk 0:01:07]} 31. Ra6 {[%clk 0:00:19]}  Rd8 {[%clk 0:01:07]} 32. Rxa7+ {[%clk 0:00:19]}  Kf6 {[%clk 0:01:07]} 33. Kc2 {[%clk 0:00:17]}  f4 {[%clk 0:01:08]} 34. Nf1 {[%clk 0:00:13]}  g5 {[%clk 0:01:00]} 35. f3 {[%clk 0:00:12]}  g4 {[%clk 0:01:00]} 36. Nd2 {[%clk 0:00:12]}  Bf5+ {[%clk 0:00:59]} 37. Ne4+ {[%clk 0:00:12]}  Bxe4+ {[%clk 0:00:58]} 38. fxe4 {[%clk 0:00:13]}  f3 {[%clk 0:00:59]} 39. gxf3 {[%clk 0:00:13]}  gxf3 {[%clk 0:00:59]} 40. Ra6+ {[%clk 0:00:06]}  Kg5 {[%clk 0:00:59]} 41. h4+ {[%clk 0:00:06]}  Kf4 {[%clk 0:00:59]} 42. Rf6+ {[%clk 0:00:06]}  Ke3 {[%clk 0:00:59]} 43. a4 {[%clk 0:00:05]}  bxa4 {[%clk 0:00:53]} 44. bxa4 {[%clk 0:00:06]}  Ke2 {[%clk 0:00:50]} 45. a5 {[%clk 0:00:06]}  f2 {[%clk 0:00:45]} 46. Kb3 {[%clk 0:00:06]}  f1=Q {[%clk 0:00:44]} 47. Rxf1 {[%clk 0:00:07]}  Kxf1 {[%clk 0:00:45]} 48. Kb4 {[%clk 0:00:08]}  Ke2 {[%clk 0:00:45]} 49. a6 {[%clk 0:00:07]}  Kd3 {[%clk 0:00:44]} 50. c4 {[%clk 0:00:05]}  Rb8+ {[%clk 0:00:42]} 51. Kc5 {[%clk 0:00:05]}  Rc8+ {[%clk 0:00:43]} 52. Kd5 {[%clk 0:00:06]}  Rxc4 {[%clk 0:00:43]} 53. a7 {[%clk 0:00:06]}  Ra4 {[%clk 0:00:40]} 54. Kxe5 {[%clk 0:00:06]}  Rxa7 {[%clk 0:00:40]} 55. Kf5 {[%clk 0:00:07]}  Kd4 {[%clk 0:00:37]} 56. h5 {[%clk 0:00:05]}  Ra5+ {[%clk 0:00:36]} 57. Kf6 {[%clk 0:00:05]}  Kxe4 {[%clk 0:00:36]} 58. h6 {[%clk 0:00:05]}  Ra7 {[%clk 0:00:37]} 59. Ke6 {[%clk 0:00:04]}  Kf4 {[%clk 0:00:36]} 60. Kf6 {[%clk 0:00:05]}  Kg4 {[%clk 0:00:37]} 61. Ke6 {[%clk 0:00:05]}  Kh5 {[%clk 0:00:38]} 62. Kf6 {[%clk 0:00:05]}  Kxh6 {[%clk 0:00:38]} 63. Kf5 {[%clk 0:00:06]}  Rg7 {[%clk 0:00:37]} 64. Kf6 {[%clk 0:00:06]}  Rg5 {[%clk 0:00:38]} 65. Kf7 {[%clk 0:00:06]}  Rg6 {[%clk 0:00:38]} 66. Kf8 {[%clk 0:00:07]}  Kg5 {[%clk 0:00:39]} 67. Kf7 {[%clk 0:00:07]}  h5 {[%clk 0:00:40]} 68. Kf8 {[%clk 0:00:07]}  h4 {[%clk 0:00:41]} 69. Kf7 {[%clk 0:00:08]}  h3 {[%clk 0:00:41]} 70. Kf8 {[%clk 0:00:09]}  h2 {[%clk 0:00:42]} 71. Kf7 {[%clk 0:00:10]}  h1=Q {[%clk 0:00:43]} 72. Kf8 {[%clk 0:00:11]}  Qh7 {[%clk 0:00:43]} 73. Ke8 {[%clk 0:00:10]}  Rg8# {[%clk 0:00:44]} 0-1


[Site "https://www.chess.com"]